fUSD/lending_fUSD_20260321
["ID","MTS","AMOUNT","RATE_DAILY","PERIOD"]
[408686424,1774119067408,5408.58943266,7.945e-05,2]
[408686426,1774119118499,4591.42056734,0.00012435,2]
[408686427,1774119118525,10000.01,0.00012435,2]
[408686428,1774119118557,10000.01,0.00012435,2]
[408686429,1774119118587,10000.01,0.00012435,2]
[408686430,1774119118615,10000.01,0.00012435,2]
[408686431,1774119118643,10000.01,0.00012435,2]
[408686432,1774119118670,10000.01,0.00012435,2]
[408686433,1774119118700,10000.01,0.00012435,2]
[408686434,1774119118727,10000.01,0.00012435,2]
[408686435,1774119118754,10000.01,0.00012435,2]
[408686436,1774119123081,5391.0,0.000111,3]
[408686438,1774119136882,-4467.01,0.000112,5]
[408686439,1774119137012,-1065.99,0.000112,5]
[408686440,1774119152159,-300.0,0.00012434,2]
[408686441,1774119153703,300.0,0.000121,2]
[408686442,1774119154027,4248.0,0.000111,5]
[408686443,1774119158197,1165.49964467,0.00012434,3]
[408686445,1774119182113,10000.01,0.00012335,2]
[408686446,1774119182135,1945.5352166,0.00012335,2]
[408686447,1774119184796,3519.0,0.000111,5]
[408686449,1774119241523,300.0,0.00012434,2]
[408686450,1774119241991,150.0,0.00012434,2]
[408686451,1774119246914,180.0,0.00012434,2]
[408686453,1774119288446,3905.4747834,0.00012425,2]
[408686454,1774119288468,10000.01,0.00012425,2]
[408686455,1774119288489,8533.32121587,0.00012425,2]
[408686456,1774119301110,1200.0,0.00012434,2]
[408686458,1774119321649,266.68878413,0.00012335,2]
[408686459,1774119321671,1300.10507142,0.00012335,2]
[408686463,1774119390669,8699.90492858,0.00012335,2]
[408686464,1774119390696,5204.53657196,0.00012335,2]
[408686465,1774119421784,300.0,0.00012434,2]
[408686466,1774119422239,150.0,0.00012434,2]
[408686469,1774119481990,500.0,0.00012434,2]
[408686470,1774119482024,552.19031619,0.00012434,2]
[408686471,1774119482052,500.0,0.00012434,2]
[408686472,1774119482094,464.35830353,0.00012434,2]
[408686473,1774119482126,500.0,0.00012434,2]
[408686474,1774119482163,500.0,0.00012434,2]
[408686475,1774119482194,552.19031619,0.00012434,2]
[408686476,1774119482230,552.19031619,0.00012434,2]
[408686477,1774119482257,224.54417594,0.00012434,2]
[408686478,1774119482281,220.24402788,0.00012434,2]
[408686479,1774119482311,552.19031619,0.00012434,2]
[408686480,1774119482340,552.19031619,0.00012434,2]
[408686481,1774119482373,552.19031619,0.00012434,2]
[408686482,1774119482409,552.19031619,0.00012434,2]
[408686483,1774119482447,552.19031619,0.00012434,2]
[408686484,1774119482477,552.19031619,0.00012434,2]
[408686485,1774119482507,552.19031619,0.00012434,2]
[408686486,1774119482539,552.19031619,0.00012434,2]
[408686487,1774119482571,552.19031619,0.00012434,2]
[408686488,1774119482601,552.19031619,0.00012434,2]
[408686489,1774119482658,552.19031619,0.00012434,2]
[408686490,1774119482687,552.19031619,0.00012434,2]
[408686491,1774119482717,552.19031619,0.00012434,2]
[408686492,1774119482747,552.19031619,0.00012434,2]
[408686493,1774119482777,552.19031619,0.00012434,2]
[408686494,1774119482807,552.19031619,0.00012434,2]
[408686495,1774119482853,552.19031619,0.00012434,2]
[408686496,1774119482888,392.53059689,0.00012434,2]
[408686497,1774119482914,159.6597193,0.00012434,2]
[408686498,1774119482951,552.19031619,0.00012434,2]
[408686499,1774119482991,552.19031619,0.00012434,2]
[408686500,1774119483060,552.19031619,0.00012434,2]
[408686501,1774119483089,552.19031619,0.00012434,2]
[408686502,1774119483129,552.19031619,0.00012434,2]
[408686503,1774119483167,552.19031619,0.00012434,2]
[408686504,1774119483211,552.19031619,0.00012434,2]
[408686505,1774119483245,552.19031619,0.00012434,2]
[408686506,1774119483506,552.19031619,0.00012434,2]
[408686507,1774119483551,552.19031619,0.00012434,2]
[408686508,1774119483610,552.19031619,0.00012434,2]
[408686509,1774119483674,552.19031619,0.00012434,2]
[408686510,1774119483704,552.19031619,0.00012434,2]
[408686511,1774119483738,552.19031619,0.00012434,2]
[408686512,1774119483770,552.19031619,0.00012434,2]
[408686513,1774119483803,552.19031619,0.00012434,2]
[408686514,1774119483855,552.19031619,0.00012434,2]
[408686515,1774119483885,453.11490547,0.00012434,2]
[408686516,1774119483910,99.07541072,0.00012434,2]
[408686517,1774119483942,552.19031619,0.00012434,2]
[408686518,1774119483973,552.19031619,0.00012434,2]
[408686519,1774119484012,552.19031619,0.00012434,2]
[408686520,1774119484050,552.19031619,0.00012434,2]
[408686521,1774119484080,552.19031619,0.00012434,2]
[408686522,1774119484161,552.19031619,0.00012434,2]
[408686523,1774119484326,552.19031619,0.00012434,2]
[408686524,1774119484434,552.19031619,0.00012434,2]
[408686525,1774119484487,552.19031619,0.00012434,2]
[408686526,1774119484537,552.19031619,0.00012434,2]
[408686527,1774119492459,-4975.2901673,0.00012435,2]
[408686528,1774119492541,-10000.01,0.00012435,2]
[408686529,1774119493888,-10000.01,0.00012435,2]
[408686530,1774119493994,-10000.01,0.00012435,2]
[408686531,1774119494097,-10000.01,0.00012435,2]
[408686532,1774119494206,-10000.01,0.00012435,2]
[408686533,1774119494306,-10000.01,0.00012435,2]
[408686534,1774119494419,-10000.01,0.00012435,2]
[408686535,1774119494539,-10000.01,0.00012435,2]
[408686536,1774119494647,-10000.01,0.00012435,2]
[408686537,1774119494758,-10000.01,0.00012435,2]
[408686538,1774119494856,-10000.01,0.00012435,2]
[408686539,1774119494947,-10000.01,0.00012435,2]
[408686540,1774119495051,-10000.01,0.00012435,2]
[408686541,1774119495138,-10000.01,0.00012435,2]
[408686542,1774119495235,-10000.01,0.00012435,2]
[408686543,1774119495368,-10000.01,0.00012435,2]
[408686544,1774119497111,-10000.01,0.00012435,2]
[408686545,1774119497227,-10000.01,0.00012435,2]
[408686546,1774119497388,-10000.01,0.00012435,2]
[408686547,1774119497509,-10000.01,0.00012435,2]
[408686548,1774119497606,-10000.01,0.00012435,2]
[408686549,1774119497689,-10000.01,0.00012435,2]
[408686557,1774119604258,150.0,0.00012334,14]
[408686563,1774119740627,-217.75,0.00011847,2]
[408686564,1774119740653,-250.0,0.00011873,2]
[408686565,1774119740677,-200.0,0.000119,4]
[408686566,1774119740700,-150.0,0.000119,2]
[408686567,1774119740725,-1200.0,0.00012334,2]
[408686568,1774119740748,-251.0,0.00012334,2]
[408686569,1774119749979,2000.0,0.00011984,2]
[408686571,1774119775562,200.0,0.000123,2]
[408686572,1774119781950,150.0,0.00012334,2]
[408686573,1774119792832,-2191.92962496,0.00012335,2]
[408686574,1774119792860,-4783.32037504,0.00012335,2]
[408686583,1774120028126,-429.90294829,0.00011823,2]
[408686584,1774120045085,-300.0,0.000118,4]
[408686585,1774120045109,-774.35801926,0.0001182,2]
[408686586,1774120054966,171.88,9.406e-05,2]
[408686590,1774120158088,-5905.34198074,0.0001182,2]
[408686591,1774120158108,-250.0,0.00011821,2]
[408686592,1774120158129,-300.0,0.00011822,2]
[408686593,1774120158148,-300.0,0.00011822,2]
[408686594,1774120158170,-15743.25543303,0.00011823,2]
[408686595,1774120162085,-17962.42161868,0.00011823,2]
[408686596,1774120162106,-1600.0,0.00011897,2]
[408686597,1774120162127,-700.0,0.000119,4]
[408686598,1774120162148,-200.0,0.00012,2]
[408686599,1774120162169,-1000.0,0.00012334,2]
[408686600,1774120162194,-1200.0,0.00012334,2]
[408686601,1774120162221,-150.0,0.00012334,2]
[408686602,1774120162244,-1183.051,0.00012335,2]
[408686603,1774120162266,-12122.15716505,0.00012335,2]
[408686604,1774120162285,-12453.54905526,0.00012335,2]
[408686605,1774120162311,-4716.39800263,0.00012335,2]
[408686606,1774120162330,-280.07290431,0.00012335,2]
[408686607,1774120167521,228.20571621,0.00011808,2]
[408686608,1774120173090,-28876.96369044,0.00012415,2]
[408686609,1774120173111,-1378.29413214,0.00012425,2]
[408686611,1774120194904,10072.4437,0.00012235,2]
[408686613,1774120206840,2170.02154552,0.00012335,2]
[408686614,1774120208851,243.72938729,0.00012285,2]
[408686615,1774120208877,495.483711,0.00012285,2]
[408686616,1774120208902,1857.06615999,0.00012285,2]
[408686617,1774120231980,-205.39694782,0.00012285,2]
[408686618,1774120231990,-438.43163213,0.00012285,2]
[408686619,1774120232085,-353.5,0.00012285,2]
[408686620,1774120232097,-7892.80926842,0.00012285,2]
[408686621,1774120232107,-7176.62586786,0.00012425,2]
[408686622,1774120232117,-572.73345952,0.00012425,2]
[408686623,1774120232127,-252.0,0.00012425,2]
[408686624,1774120232136,-250.0,0.00012425,2]
[408686625,1774120232146,-1200.0,0.00012426,2]
[408686626,1774120232156,-245.97064625,0.00012427,2]
[408686627,1774120232165,-200.0,0.00012427,2]
[408686628,1774120232175,-232.89478887,0.00012433,2]
[408686629,1774120232184,-300.0,0.00012433,2]
[408686630,1774120232197,-307.77077871,0.00012434,2]
[408686631,1774120232207,-702.78767515,0.00012434,2]
[408686632,1774120232223,-702.78767515,0.00012434,2]
[408686633,1774120232236,-702.78767515,0.00012434,2]
[408686634,1774120232247,-702.78767515,0.00012434,2]
[408686635,1774120232257,-702.78767515,0.00012434,2]
[408686636,1774120232266,-702.78767515,0.00012434,2]
[408686637,1774120232276,-702.78767515,0.00012434,2]
[408686638,1774120232287,-702.78767515,0.00012434,2]
[408686639,1774120232298,-702.78767515,0.00012434,2]
[408686640,1774120232307,-702.78767515,0.00012434,2]
[408686641,1774120232316,-500.0,0.00012434,2]
[408686642,1774120232325,-500.0,0.00012434,2]
[408686643,1774120232334,-500.0,0.00012434,2]
[408686644,1774120232344,-635.41402663,0.00012434,2]
[408686645,1774120232353,-500.0,0.00012434,2]
[408686646,1774120232363,-500.0,0.00012434,2]
[408686647,1774120232372,-500.0,0.00012434,2]
[408686648,1774120232381,-500.0,0.00012434,2]
[408686649,1774120232391,-500.0,0.00012434,2]
[408686650,1774120232402,-500.0,0.00012434,2]
[408686651,1774120232412,-500.0,0.00012434,2]
[408686652,1774120232422,-500.0,0.00012434,2]
[408686653,1774120232431,-500.0,0.00012434,2]
[408686654,1774120232440,-500.0,0.00012434,2]
[408686655,1774120232450,-500.0,0.00012434,2]
[408686656,1774120232459,-500.0,0.00012434,2]
[408686657,1774120232469,-593.61700443,0.00012434,2]
[408686658,1774120232478,-500.0,0.00012434,2]
[408686659,1774120232488,-153.63061259,0.00012434,2]
[408686660,1774120232497,-381.30505571,0.00012434,2]
[408686661,1774120232506,-500.0,0.00012434,2]
[408686662,1774120232516,-220.65319568,0.00012434,2]
[408686663,1774120232526,-291.31315243,0.00012434,2]
[408686664,1774120232535,-500.0,0.00012434,2]
[408686665,1774120232545,-208.48738308,0.00012434,2]
[408686666,1774120232554,-180.78497574,0.00012434,2]
[408686667,1774120232563,-150.99,0.00012435,2]
[408686668,1774120232573,-999.99,0.00012435,2]
[408686669,1774120232582,-9999.99,0.00012435,2]
[408686670,1774120232592,-14089.29,0.00012435,2]
[408686671,1774120232601,-1568.67,0.00012435,2]
[408686672,1774120232610,-9456.43,0.00012435,2]
[408686673,1774120232620,-1618.27,0.00012435,2]
[408686674,1774120232629,-150.99,0.00012435,2]
[408686675,1774120232639,-9999.99,0.00012435,2]
[408686676,1774120232648,-2114.07,0.00012435,2]
[408686677,1774120232658,-333.17,0.00012435,2]
[408686678,1774120232668,-73903.42,0.00012435,2]
[408686679,1774120232677,-3671.02,0.00012435,2]
[408686680,1774120232686,-1189.17,0.00012435,2]
[408686681,1774120232696,-44623.8,0.00012435,2]
[408686682,1774120232706,-312.59,0.00012435,2]
[408686683,1774120232725,-9999.99,0.00012435,2]
[408686685,1774120232735,-9999.99,0.00012435,2]
[408686687,1774120232745,-1547.4,0.00012435,2]
[408686689,1774120232756,-8449.63,0.00012435,2]
[408686691,1774120232766,-23270.6,0.00012435,2]
[408686693,1774120232776,-101494.34037723,0.00012435,2]
[408686696,1774120232789,-699.0,0.00012435,2]
[408686698,1774120232801,-8839.77453402,0.00012435,2]
[408686700,1774120232812,-18571.82675245,0.00012435,2]
[408686713,1774120238183,-20000.02,0.00012235,2]
[408686714,1774120238192,-14482.29591113,0.00012335,2]
[408686715,1774120238201,-6508.5921,0.00012435,2]
[408686716,1774120238212,-500.0,0.00012435,2]
[408686717,1774120238224,-182.73188164,0.00012435,2]
[408686718,1774120238234,-500.0,0.00012473,2]
[408686719,1774120238243,-500.0,0.00012473,2]
[408686720,1774120238255,-500.0,0.00012473,2]
[408686721,1774120238264,-459.51301064,0.00012473,2]
[408686722,1774120238273,-500.0,0.00012473,2]
[408686723,1774120238282,-166.72,0.00012507,2]
[408686724,1774120238293,-547.69208934,0.00012534,2]
[408686725,1774120238303,-547.69208934,0.00012534,2]
[408686726,1774120238312,-547.69208934,0.00012534,2]
[408686728,1774120238321,-547.69208934,0.00012534,2]
[408686730,1774120238330,-547.69208934,0.00012534,2]
[408686732,1774120238340,-547.69208934,0.00012534,2]
[408686734,1774120238348,-547.69208934,0.00012534,2]
[408686736,1774120238357,-547.69208934,0.00012534,2]
[408686738,1774120238367,-547.69208934,0.00012534,2]
[408686740,1774120238376,-547.69208934,0.00012534,2]
[408686742,1774120238385,-547.69208934,0.00012534,2]
[408686744,1774120238394,-547.69208934,0.00012534,2]
[408686746,1774120238403,-547.69208934,0.00012534,2]
[408686748,1774120238412,-547.69208934,0.00012534,2]
[408686749,1774120238421,-547.69208934,0.00012534,2]
[408686751,1774120238431,-547.69208934,0.00012534,2]
[408686753,1774120238439,-547.69208934,0.00012534,2]
[408686755,1774120238449,-547.69208934,0.00012534,2]
[408686758,1774120238458,-547.69208934,0.00012534,2]
[408686761,1774120238467,-547.69208934,0.00012534,2]
[408686764,1774120238476,-547.69208934,0.00012534,2]
[408686767,1774120238486,-547.69208934,0.00012534,2]
[408686770,1774120238495,-547.69208934,0.00012534,2]
[408686772,1774120238505,-547.69208934,0.00012534,2]
[408686774,1774120238514,-547.69208934,0.00012534,2]
[408686776,1774120238523,-547.69208934,0.00012534,2]
[408686778,1774120238532,-547.69208934,0.00012534,2]
[408686780,1774120238541,-547.69208934,0.00012534,2]
[408686782,1774120238551,-500.0,0.00012709,2]
[408686784,1774120238562,-12122.15716497,0.00012731,2]
[408686786,1774120238571,-4119.46727008,0.00012735,2]
[408686788,1774120238581,-2170.02154545,0.00012844,2]
[408686790,1774120238590,-280.0729043,0.00012929,2]
[408686792,1774120238599,-171.34411258,0.00012935,2]
[408686794,1774120238608,-200.0,0.00012975,2]
[408686796,1774120238617,-180.0,0.0001298,2]
[408686798,1774120238627,-500.0,0.00012983,2]
[408686800,1774120238636,-250.0,0.00013002,2]
[408686802,1774120238646,-185.23,0.0001301,2]
[408686804,1774120238656,-500.0,0.00013021,2]
[408686806,1774120238666,-500.0,0.00013021,2]
[408686808,1774120238675,-500.0,0.00013021,2]
[408686810,1774120238684,-380.49932294,0.00013027,2]
[408686812,1774120238693,-500.0,0.00013033,2]
[408686814,1774120238702,-109207.49,0.00013035,2]
[408686816,1774120238711,-12122.15716497,0.00013127,2]
[408686818,1774120238721,-10000.0,0.00013177,2]
[408686820,1774120238730,-2170.02154545,0.00013354,2]
[408686822,1774120238739,-1600.0,0.00013384,2]
[408686823,1774120238748,-255.0,0.00013419,2]
[408686825,1774120238758,-2000.0,0.00013482,2]
[408686827,1774120238767,-200.0,0.00013523,2]
[408686830,1774120238776,-12122.15716497,0.00013523,2]
[408686832,1774120238786,-280.0729043,0.00013523,2]
[408686833,1774120238795,-166.72,0.00013539,2]
[408686835,1774120238804,-378.53301702,0.00013581,2]
[408686837,1774120238813,-420.0,0.00013642,2]
[408686839,1774120238822,-250.0,0.00013667,2]
[408686841,1774120238831,-1680.0,0.00013669,2]
[408686843,1774120238840,-500.0,0.00013698,2]
[408686845,1774120238849,-500.0,0.00013698,2]
[408686848,1774120238859,-500.0,0.00013698,2]
[408686850,1774120238869,-491.51644773,0.00013698,2]
[408686852,1774120238879,-500.0,0.00013698,2]
[408686854,1774120238889,-500.0,0.00013698,2]
[408686855,1774120238898,-243.49562344,0.00013698,2]
[408686857,1774120238907,-500.0,0.00013698,2]
[408686859,1774120238916,-500.0,0.00013698,2]
[408686860,1774120238925,-500.0,0.00013698,2]
[408686861,1774120238935,-500.0,0.00013698,2]
[408686862,1774120238945,-270.5904036,0.00013698,2]
[408686863,1774120238955,-500.0,0.00013698,2]
[408686864,1774120238966,-500.0,0.00013698,2]
[408686865,1774120238975,-500.0,0.00013698,2]
[408686866,1774120238985,-500.0,0.00013698,2]
[408686867,1774120238995,-500.0,0.00013698,2]
[408686868,1774120239004,-500.0,0.00013698,2]
[408686869,1774120239014,-500.0,0.00013698,2]
[408686870,1774120239023,-500.0,0.00013698,2]
[408686871,1774120239032,-500.0,0.00013698,2]
[408686872,1774120239043,-500.0,0.00013698,2]
[408686873,1774120239052,-500.0,0.00013698,2]
[408686874,1774120239062,-500.0,0.00013698,2]
[408686875,1774120239071,-524.44263512,0.00013698,2]
[408686876,1774120239080,-502.46747394,0.00013698,2]
[408686877,1774120239091,-500.0,0.00013698,2]
[408686878,1774120239102,-500.0,0.00013698,2]
[408686879,1774120239112,-500.0,0.00013698,2]
[408686880,1774120239123,-500.0,0.00013698,2]
[408686881,1774120239133,-500.0,0.00013698,2]
[408686882,1774120239142,-500.0,0.00013698,2]
[408686883,1774120239152,-500.0,0.00013698,2]
[408686884,1774120239161,-500.0,0.00013698,2]
[408686885,1774120239171,-500.0,0.00013698,2]
[408686886,1774120239180,-500.0,0.00013698,2]
[408686887,1774120239189,-500.0,0.00013698,2]
[408686888,1774120239198,-500.0,0.00013698,2]
[408686889,1774120239209,-500.0,0.00013698,2]
[408686890,1774120239222,-500.0,0.00013698,2]
[408686891,1774120239232,-503.01706708,0.00013698,2]
[408686892,1774120239241,-516.77763699,0.00013698,2]
[408686893,1774120239251,-200.0,0.00013699,2]
[408686894,1774120239262,-465.11,0.00013699,2]
[408686895,1774120239271,-1689.02,0.00013699,2]
[408686896,1774120239280,-153.0,0.00013699,2]
[408686897,1774120239291,-7966.15,0.00013699,2]
[408686898,1774120239300,-200.5648304,0.00013699,2]
[408686899,1774120239310,-1007.92,0.000137,2]
[408686900,1774120239319,-234.53,0.000137,2]
[408686901,1774120239327,-814.18,0.000137,2]
[408686902,1774120239337,-564.59,0.000138,2]
[408686903,1774120239346,-2170.02154545,0.00013863,2]
[408686904,1774120239355,-500.0,0.00013878,2]
[408686905,1774120239364,-500.0,0.00013878,2]
[408686906,1774120239373,-500.0,0.00013878,2]
[408686907,1774120239382,-500.0,0.00013878,2]
[408686908,1774120239392,-500.0,0.00013878,2]
[408686909,1774120239401,-500.0,0.00013878,2]
[408686910,1774120239412,-500.0,0.00013878,2]
[408686911,1774120239421,-500.0,0.00013878,2]
[408686912,1774120239430,-500.0,0.00013878,2]
[408686913,1774120239439,-500.0,0.00013878,2]
[408686914,1774120239448,-500.0,0.00013878,2]
[408686915,1774120239458,-500.0,0.00013878,2]
[408686916,1774120239467,-1100.0,0.000139,5]
[408686917,1774120239477,-12122.15716497,0.00013919,2]
[408686918,1774120239486,-507.0,0.00014,2]
[408686919,1774120239496,-262.7,0.00014024,2]
[408686920,1774120239505,-280.0729043,0.00014118,2]
[408686921,1774120239514,-1000.0,0.00014166,2]
[408686922,1774120239524,-12122.15716497,0.00014316,2]
[408686923,1774120239534,-2170.02154545,0.00014372,2]
[408686924,1774120239543,-1689.02,0.00014384,2]
[408686925,1774120239552,-166.72,0.00014571,2]
[408686926,1774120239562,-433.0,0.00014603,2]
[408686927,1774120239571,-1731.0,0.00014708,5]
[408686928,1774120239580,-12122.15716497,0.00014712,2]
[408686929,1774120239589,-280.0729043,0.00014712,2]
[408686930,1774120239599,-250.0,0.0001474,2]
[408686931,1774120239608,-3935.56,0.00014752,2]
[408686932,1774120239619,-1600.0,0.00014871,2]
[408686933,1774120239628,-2170.02154545,0.00014881,2]
[408686934,1774120239637,-587.0,0.0001497,2]
[408686935,1774120239647,-2000.0,0.0001498,2]
[408686936,1774120239655,-250.0,0.00015,2]
[408686937,1774120239665,-2351.0,0.00015036,2]
[408686938,1774120239674,-201.0,0.00015061,2]
[408686939,1774120239683,-9859.71,0.00015063,2]
[408686940,1774120239692,-304.696003,0.00015068,2]
[408686941,1774120239702,-1689.02,0.00015068,2]
[408686942,1774120239711,-201.0,0.00015105,2]
[408686943,1774120239721,-12122.15716497,0.00015108,2]
[408686944,1774120239731,-201.0,0.00015172,2]
[408686945,1774120239740,-350.0,0.00015208,3]
[408686946,1774120239749,-350.0,0.00015217,2]
[408686947,1774120239758,-350.0,0.00015246,3]
[408686948,1774120239767,-280.0729043,0.00015306,2]
[408686949,1774120239777,-350.0,0.0001531,2]
[408686951,1774120239786,-1568.0,0.0001536,2]
[408686952,1774120239796,-201.0,0.00015366,2]
[408686953,1774120239805,-350.0,0.00015391,2]
[408686954,1774120239814,-150.25811759,0.00015445,5]
[408686955,1774120239823,-500.0,0.00015449,2]
[408686956,1774120239832,-500.0,0.00015449,2]
[408686957,1774120239842,-500.0,0.00015449,2]
[408686958,1774120239852,-500.0,0.00015449,2]
[408686959,1774120239862,-500.0,0.00015449,2]
[408686960,1774120239871,-500.0,0.00015449,2]
[408686961,1774120239880,-577.95065984,0.00015449,2]
[408686962,1774120239889,-1500.0,0.000155,5]
[408686963,1774120239898,-12122.15716497,0.00015504,2]
[408686964,1774120239907,-160.0,0.00015523,7]
[408686965,1774120239917,-165.737534,0.00015523,7]
[408686966,1774120239927,-171.633875,0.00015523,7]
[408686967,1774120239935,-979.16666667,0.00015555,2]
[408686968,1774120239945,-208.218172,0.00015582,7]
[408686969,1774120239954,-164.859998,0.00015582,7]
[408686970,1774120239963,-160.0,0.00015582,7]
[408686971,1774120239972,-1900.0,0.000156,5]
[408686972,1774120239981,-201.0,0.00015624,2]
[408686973,1774120239991,-924.0,0.00015634,2]
[408686974,1774120240000,-1215.0,0.00015634,2]
[408686975,1774120240009,-2466.0,0.00015643,2]
[408686976,1774120240018,-6007.0,0.00015643,2]
[408686977,1774120240179,-160.0,0.0001568,7]
[408686978,1774120240188,-160.0,0.0001568,7]
[408686979,1774120240197,-255.875977,0.0001568,7]
[408686980,1774120240206,-160.0,0.0001568,7]
[408686981,1774120240219,-300.0,0.000157,5]
[408686982,1774120240228,-1689.02,0.00015753,2]
[408686983,1774120240237,-300.0,0.000158,5]
[408686984,1774120240247,-28037.43911886,0.0001584,2]
[408686985,1774120240258,-201.0,0.00015859,2]
[408686986,1774120240267,-465.11,0.00015862,2]
[408686987,1774120240277,-4453.0,0.00015863,2]
[408686988,1774120240286,-500.0,0.00015871,2]
[408686989,1774120240298,-500.0,0.00015872,2]
[408686990,1774120240308,-736.0,0.00015886,2]
[408686991,1774120240317,-102109.727,0.000159,2]
[408686992,1774120240326,-1000.0,0.000159,2]
[408686993,1774120240335,-12122.15716497,0.000159,2]
[408686994,1774120240345,-300.0,0.000159,5]
[408686995,1774120240354,-366.4469759,0.000159,2]
[408686996,1774120240363,-3988.66058895,0.000159,2]
[408686997,1774120240372,-280.0729043,0.000159,2]
[408686998,1774120240381,-631.4293198,0.000159,2]
[408686999,1774120240390,-1629.0,0.000159,5]
[408687000,1774120240399,-6945.0,0.00015973,2]
[408687001,1774120240408,-500.0,0.00015973,2]
[408687002,1774120240417,-500.0,0.00015973,2]
[408687003,1774120240426,-357.55340388,0.00015973,2]
[408687004,1774120240435,-500.0,0.00015973,2]
[408687005,1774120240444,-500.0,0.00015973,2]
[408687006,1774120240453,-500.0,0.00015973,2]
[408687007,1774120240463,-500.0,0.00015973,2]
[408687008,1774120240472,-226.57620935,0.00015973,2]
[408687009,1774120240481,-500.0,0.00015973,2]
[408687010,1774120240490,-500.0,0.00015973,2]
[408687011,1774120240500,-500.0,0.00015973,2]
[408687012,1774120240509,-500.0,0.00015973,2]
[408687013,1774120240518,-500.0,0.00015973,2]
[408687014,1774120240527,-500.0,0.00015973,2]
[408687015,1774120240536,-500.0,0.00015973,2]
[408687016,1774120240545,-500.0,0.00015973,2]
[408687017,1774120240554,-500.0,0.00015973,2]
[408687018,1774120240564,-500.0,0.00015973,2]
[408687019,1774120240573,-500.0,0.00015973,2]
[408687020,1774120240582,-500.0,0.00015973,2]
[408687021,1774120240591,-500.0,0.00015973,2]
[408687022,1774120240600,-500.0,0.00015973,2]
[408687023,1774120240609,-412.99392051,0.00015973,2]
[408687024,1774120240618,-500.0,0.00015973,2]
[408687025,1774120240627,-500.0,0.00015973,2]
[408687026,1774120240636,-500.0,0.00015973,2]
[408687027,1774120240645,-500.0,0.00015973,2]
[408687028,1774120240654,-500.0,0.00015973,2]
[408687029,1774120240663,-500.0,0.00015973,2]
[408687030,1774120240673,-500.0,0.00015973,2]
[408687032,1774120240682,-500.0,0.00015973,2]
[408687033,1774120240691,-500.0,0.00015973,2]
[408687034,1774120240701,-500.0,0.00015973,2]
[408687035,1774120240710,-500.0,0.00015973,2]
[408687036,1774120240719,-572.73345952,0.0001599,2]
[408687037,1774120240728,-572.73345952,0.0001599,2]
[408687038,1774120240738,-151.0,0.00015997,2]
[408687039,1774120240747,-2000.0,0.00015999,2]
[408687040,1774120240756,-155.0,0.00015999,2]
[408687041,1774120240765,-299827.60428085,0.00016,2]
[408687042,1774120240780,-6090.43208166,0.00016,2]
[408687043,1774120240791,-997.91895596,0.00016,2]
[408687044,1774120240810,-464.36666596,0.00016,2]
[408687045,1774120240821,-4847.94218682,0.00016,2]
[408687052,1774120243129,-303.81518612,0.00012731,2]
[408687054,1774120243235,-10800.0,0.00012731,2]
[408687055,1774120243246,-937.70955075,0.00012731,2]
[408687056,1774120243318,-0.01112759,0.00012731,2]
[408687057,1774120243329,-603.0,0.00012731,2]
[408687062,1774120245950,-261.02,0.00012731,2]